bitfinex/quotes_SOLUSD_20241001
["timestamp","ask_amount","ask_price","bid_price","bid_amount"]
[1727743215505,0.8211643,153.22,153.18,6.5281]
[1727743216003,0.8211643,153.22,153.14,18.51597669]
[1727743216200,0.8211643,153.22,153.2,6.5273]
[1727743216387,0.8211643,153.22,153.21,6.5269]
[1727743227517,0.8211643,153.22,153.21,36.5269]
[1727743228997,0.8211643,153.22,153.21,6.5269]
[1727743239542,0.8211643,153.22,153.21,36.5269]
[1727743239725,0.8211643,153.22,153.21,44.0433795]
[1727743240324,0.8211643,153.22,153.21,44.05869363]
[1727743242424,0.8211643,153.22,153.21,14.05869363]
[1727743242742,0.8211643,153.22,153.21,6.5269]
[1727743247027,0.8211643,153.22,153.19,16.3187]
[1727743247234,0.8211643,153.22,153.2,6.527]
[1727743247433,0.8211643,153.22,153.21,6.5269]
[1727743248557,0.8211643,153.22,153.19,16.3187]
[1727743249238,0.8211643,153.22,153.2,6.5272]
[1727743250753,0.8211643,153.22,153.19,16.3187]
[1727743250956,2.45294112,153.22,153.19,16.3187]
[1727743251461,0.8211643,153.22,153.19,16.3187]
[1727743251949,0.8211643,153.22,153.19,22.8464]
[1727743255849,0.8211643,153.22,153.19,16.3187]
[1727743257551,0.8211643,153.22,153.21,6.5269]
[1727743259175,0.8211643,153.22,153.21,10.25772166]
[1727743259352,0.8211643,153.22,153.21,6.5269]
[1727743259953,0.8211643,153.22,153.21,10.25772166]
[1727743262051,0.8211643,153.22,153.21,25.56812166]
[1727743262262,0.8211643,153.22,153.21,55.31432032]
[1727743263053,0.8211643,153.22,153.21,85.31432032]
[1727743263862,0.3609138,153.24,153.23,25.04207669]
[1727743264065,0.3609138,153.24,153.23,28.77289835]
[1727743264263,0.3609138,153.24,153.23,34.74221301]
[1727743265268,0.3609138,153.24,153.23,31.01387961]
[1727743265857,0.3609138,153.24,153.23,34.74625643]
[1727743268266,0.3609138,153.24,153.23,25.04207669]
[1727743268478,0.3609138,153.24,153.23,34.74766128]
[1727743269079,0.3609138,153.24,153.23,58.52454528]
[1727743269251,6.5214,153.35,153.3,6.5229]
[1727743269457,23.0187,153.36,153.28,16.3095]
[1727743269458,29.5393,153.36,153.31,6.5227]
[1727743269679,29.5393,153.36,153.31,18.30673493]
[1727743270057,23.0187,153.36,153.33,11.78403493]
[1727743270377,0.8211643,153.37,153.34,18.30533493]
[1727743271676,0.8211643,153.37,153.34,6.5213]
[1727743271977,0.8211643,153.37,153.35,6.521]
[1727743272271,0.8211643,153.37,153.36,6.5206]
[1727743272878,0.8211643,153.37,153.36,24.92533512]
[1727743273979,0.8211643,153.37,153.36,6.5206]
[1727743274763,0.8211643,153.37,153.34,6.521]
[1727743274983,0.8211643,153.37,153.33,16.3046]
[1727743275261,0.8211643,153.37,153.34,6.5213]
[1727743275864,0.8211643,153.37,153.33,16.3046]
[1727743276077,7.3413643,153.37,153.33,16.3046]
[1727743276379,0.8211643,153.37,153.33,22.8264]
[1727743276773,0.8211643,153.37,153.31,6.5223]
[1727743276977,6.5211,153.35,153.3,22.8308]
[1727743277375,6.5206,153.36,153.31,6.5227]
[1727743277576,0.8211643,153.37,153.3,16.3077]
[1727743277769,7.3413643,153.37,153.32,6.5222]
[1727743278770,6.5206,153.36,153.31,6.5226]
[1727743279868,0.8211643,153.37,153.32,6.5222]
[1727743280965,0.8211643,153.37,153.3,34.71243512]
[1727743281164,0.8211643,153.37,153.33,6.5215]
[1727743281585,7.3413643,153.37,153.32,22.827]
[1727743282300,8.09557344,153.36,153.29,16.3086]
[1727743282505,29.2465,153.36,153.3,6.5231]
[1727743282807,29.2465,153.36,153.29,16.3086]
[1727743282808,29.2465,153.36,153.31,6.5223]
[1727743283705,22.7255,153.36,153.32,6.5222]
[1727743284593,0.8211643,153.37,153.33,6.5218]
[1727743284806,0.8211643,153.37,153.35,6.5209]
[1727743285104,0.8211643,153.37,153.34,6.5214]
[1727743285311,6.5206,153.36,153.31,6.5226]
[1727743285492,2.45128652,153.37,153.3,16.3075]
[1727743286206,6.5214,153.34,153.3,16.3075]
[1727743287885,6.521,153.35,153.3,22.8306]
[1727743288285,6.5206,153.36,153.31,6.5226]
[1727743288903,8.15142485,153.35,153.3,22.8306]
[1727743289118,6.521,153.35,153.3,22.8306]
[1727743290319,7.3416643,153.37,153.31,6.5226]
[1727743290521,6.5207,153.36,153.31,6.5226]
[1727743292009,7.3413643,153.37,153.32,6.5223]
[1727743292600,7.3413643,153.37,153.33,6.5218]
[1727743293198,0.8211643,153.37,153.33,6.5218]
[1727743294016,0.8211643,153.37,153.35,6.5208]
[1727743296420,0.8211643,153.37,153.36,6.5206]
[1727743302113,0.8211643,153.37,153.31,15.8618]
[1727743302412,0.8211643,153.37,153.31,34.26653512]
[1727743303008,0.8211643,153.37,153.35,6.521]
[1727743303199,0.8211643,153.37,153.33,16.3037]
[1727743305029,0.8211643,153.37,153.33,22.8255]
[1727743305211,8.97148426,153.37,153.33,16.3037]
[1727743305726,2.45128426,153.37,153.29,25.78154029]
[1727743305911,6.5211,153.35,153.3,6.523]
[1727743306109,1.63049383,153.34,153.29,22.8314]
[1727743306915,1.63049383,153.34,153.29,16.3079]
[1727743307135,6.5223,153.32,153.27,6.5242]
[1727743307317,6.5219,153.33,153.28,6.5239]
[1727743307807,13.0388,153.35,153.29,6.5233]
[1727743309033,6.5177,153.35,153.28,16.3096]
[1727743309220,0.8211643,153.37,153.33,6.5218]
[1727743309422,0.8211643,153.37,153.32,6.5222]
[1727743309612,8.15105043,153.36,153.31,22.8291]
[1727743310233,8.15105043,153.36,153.31,16.3065]
[1727743310944,0.8211643,153.37,153.31,16.3065]
[1727743311517,0.8211643,153.37,153.32,6.5222]
[1727743311518,2.45144911,153.37,153.32,6.5222]
[1727743312128,0.8211643,153.37,153.32,6.5222]
[1727743312632,7.3413643,153.37,153.32,6.5222]
[1727743313334,0.8211643,153.37,153.31,16.3065]
[1727743313829,6.5206,153.36,153.31,22.8291]
[1727743314136,7.3412643,153.37,153.32,6.5222]
[1727743314515,0.8211643,153.37,153.34,6.5213]
[1727743314718,7.3412643,153.37,153.32,6.5222]
[1727743315327,8.15084624,153.36,153.32,6.5222]
[1727743315506,6.5211,153.35,153.31,16.3065]
[1727743317714,6.5206,153.36,153.31,22.8292]
[1727743318326,0.8211643,153.37,153.32,6.5219]
[1727743318523,0.8211643,153.37,153.31,20.04288033]
[1727743318816,0.8211643,153.37,153.33,6.5218]
[1727743319324,0.8211643,153.37,153.34,6.5214]
[1727743320420,0.8211643,153.37,153.32,3.73588779]
[1727743320735,7.3413643,153.37,153.33,6.5218]
[1727743321234,1.63025648,153.36,153.31,16.3065]
[1727743321538,1.63025648,153.36,153.29,6.5235]
[1727743321721,6.5215,153.34,153.3,7.59791421]
[1727743321915,6.5215,153.34,153.29,16.02062354]
[1727743322125,6.5215,153.34,153.3,14.12082946]
[1727743322346,0.8211643,153.37,153.31,6.5227]
[1727743322519,7.3416643,153.37,153.32,6.5222]
[1727743322720,0.8211643,153.37,153.29,27.90198413]
[1727743323034,0.8211643,153.37,153.32,16.305]
[1727743323235,0.8211643,153.37,153.33,6.5218]
[1727743324018,0.8211643,153.37,153.32,16.305]
[1727743324019,0.8211643,153.37,153.34,6.5213]
[1727743324238,0.8211643,153.37,153.31,18.40473512]
[1727743324438,0.8211643,153.37,153.35,16.3025]
[1727743325447,0.8211643,153.37,153.35,22.8233]
[1727743326146,0.8211643,153.37,153.35,16.3025]
[1727743326331,0.8211643,153.37,153.36,6.5206]
[1727743328624,0.8211643,153.37,153.35,16.3025]
[1727743328829,0.8211643,153.37,153.33,6.5214]
[1727743329042,7.3413643,153.37,153.33,6.5214]
[1727743329540,0.8211643,153.37,153.32,16.3055]
[1727743329754,6.5206,153.36,153.32,16.3055]
[1727743330331,1.63036171,153.35,153.32,16.3055]
[1727743330728,1.63036171,153.35,153.28,15.909]
[1727743331043,8.15166171,153.35,153.29,26.56872186]
[1727743331351,6.5213,153.35,153.3,6.5228]
[1727743331525,23.1837643,153.37,153.29,16.3087]
[1727743331727,6.5206,153.36,153.31,6.5226]
[1727743332430,23.1837643,153.37,153.3,10.25996002]
[1727743332431,6.521,153.35,153.3,10.25996002]
[1727743332836,6.521,153.35,153.3,3.73686002]
[1727743333045,6.5206,153.36,153.31,6.5227]
[1727743333942,29.7039643,153.37,153.3,3.73686002]
[1727743334262,29.7039643,153.37,153.32,6.5222]
[1727743334546,7.2780643,153.37,153.34,6.5214]
[1727743334846,0.8211643,153.37,153.34,6.5214]
[1727743335345,0.8211643,153.37,153.35,6.521]
[1727743336134,0.8211643,153.37,153.34,6.5214]
[1727743338132,0.8211643,153.37,153.33,16.3037]
[1727743338340,0.8211643,153.37,153.35,6.5208]
[1727743338652,0.8211643,153.37,153.34,6.5214]
[1727743339156,0.8211643,153.37,153.33,16.3037]
[1727743339358,0.8211643,153.37,153.35,6.521]
[1727743343555,0.8211643,153.37,153.34,6.5214]
[1727743345762,0.8211643,153.37,153.33,22.8255]
[1727743345960,0.8211643,153.37,153.31,3.73683809]
[1727743346174,0.8211643,153.37,153.31,6.5226]
[1727743346175,6.5209,153.36,153.31,6.5226]
[1727743347259,8.15131098,153.36,153.31,6.5226]
[1727743347747,6.5209,153.36,153.31,6.5226]
[1727743351675,6.5209,153.36,153.32,3.73863129]
[1727743352358,6.5209,153.36,153.31,6.5226]
[1727743352558,6.5209,153.36,153.32,3.73852746]
[1727743352766,0.8211643,153.37,153.3,16.3078]
[1727743352968,7.3413643,153.37,153.32,6.5219]
[1727743353266,7.3413643,153.37,153.33,3.73822474]
[1727743353464,7.3413643,153.37,153.32,6.5219]
[1727743354478,0.8211643,153.37,153.34,6.5213]
[1727743355383,0.8211643,153.37,153.33,6.5217]
[1727743356012,2.45138683,153.37,153.32,16.3049]
[1727743356177,6.5206,153.36,153.33,3.73882301]
[1727743356484,7.3413643,153.37,153.32,22.827]
[1727743356790,7.3413643,153.37,153.33,3.7389228]
[1727743356970,7.3413643,153.37,153.32,22.827]
[1727743357672,7.3413643,153.37,153.33,3.73887924]
[1727743357871,6.5207,153.36,153.32,16.3049]
[1727743358093,1.63041278,153.35,153.29,16.3088]
[1727743358274,6.5207,153.36,153.31,6.5226]
[1727743358477,6.5207,153.36,153.32,3.73922756]
[1727743358791,6.5207,153.36,153.31,6.5226]
[1727743358989,6.5207,153.36,153.32,3.74100377]
[1727743359192,8.15111058,153.36,153.31,6.5226]
[1727743359380,8.15111058,153.36,153.32,3.74097107]
[1727743359568,6.5207,153.36,153.31,6.5226]
[1727743359768,6.5207,153.36,153.32,3.74099743]
[1727743359970,6.5207,153.36,153.3,8.11426879]
[1727743360170,0.8211643,153.37,153.33,6.5214]
[1727743360381,0.8211643,153.37,153.34,6.5213]
[1727743361281,0.8211643,153.37,153.33,6.5217]
[1727743361682,6.521,153.35,153.31,16.306]
[1727743361880,6.521,153.35,153.3,8.11753761]
[1727743361881,1.63051612,153.34,153.32,3.74066808]
[1727743362069,1.63051612,153.34,153.3,8.11753761]
[1727743362276,6.6644,153.36,153.31,3.74144349]
[1727743362497,6.6644,153.36,153.32,10.26374349]
[1727743362689,6.6644,153.36,153.32,6.5223]
[1727743363274,6.6644,153.36,153.33,3.74145207]
[1727743363507,1.63040444,153.35,153.31,6.5226]
[1727743363688,1.63040444,153.35,153.32,3.74155326]
[1727743363972,1.63040444,153.35,153.33,3.74155326]
[1727743364172,13.185,153.36,153.31,6.5226]
[1727743364373,13.185,153.36,153.32,3.73985272]
[1727743364569,13.185,153.36,153.33,3.73985272]
[1727743364773,13.185,153.36,153.31,6.5226]
[1727743365083,8.15159324,153.35,153.32,3.73798161]
[1727743365290,6.5215,153.34,153.3,24.42453761]
[1727743365498,1.63068336,153.33,153.3,24.42453761]
[1727743365798,1.63068336,153.33,153.3,16.307]
[1727743365983,1.63068336,153.33,153.3,24.42453761]
[1727743366291,6.6644,153.36,153.31,6.5227]
[1727743366292,6.521,153.35,153.31,6.5227]
[1727743366500,6.521,153.35,153.3,30.94763761]
[1727743369294,13.185,153.36,153.31,6.5226]
[1727743369480,6.6644,153.36,153.32,6.5222]
[1727743369674,7.3413643,153.37,153.32,6.5222]
[1727743370089,7.3413643,153.37,153.3,24.42453761]
[1727743370396,7.3413643,153.37,153.33,6.5218]
[1727743371401,1.63031708,153.36,153.32,6.5222]
[1727743372586,7.3413643,153.37,153.32,6.5222]
[1727743372891,8.15109973,153.36,153.3,24.42051379]
[1727743373095,6.5211,153.35,153.31,6.5226]
[1727743373298,1.63061081,153.34,153.3,30.94351379]
[1727743373477,6.5211,153.35,153.3,24.42051379]
[1727743373672,23.776884,153.36,153.31,6.5226]
[1727743374000,0.8211643,153.37,153.32,6.5221]
[1727743374001,7.3416643,153.37,153.32,6.5221]
[1727743374178,1.6303999,153.36,153.32,6.5221]
[1727743375404,6.5219,153.33,153.3,8.11415369]
[1727743375584,1.63074491,153.32,153.28,8.11415369]
[1727743375903,1.63074491,153.32,153.28,14.63805369]
[1727743376095,8.15304491,153.32,153.28,14.63805369]
[1727743376301,6.5223,153.32,153.28,14.63805369]
[1727743376493,8.15354225,153.31,153.28,8.11415369]
[1727743376675,8.15354225,153.31,153.27,24.42495369]
[1727743376879,8.15354225,153.31,153.27,16.3108]
[1727743377075,22.4291,153.33,153.26,8.11415369]
[1727743377299,6.5236,153.29,153.24,24.42805369]
[1727743377507,6.5236,153.29,153.25,8.11415369]
[1727743378202,6.5236,153.29,153.24,30.95355369]
[1727743380186,23.776884,153.32,153.24,24.42805369]
[1727743380387,6.5227,153.31,153.26,6.5248]
[1727743381202,23.776884,153.32,153.26,16.3113]
[1727743381502,28.9513,153.33,153.28,6.5239]
[1727743381807,22.4210643,153.37,153.28,16.309]
[1727743382100,6.5211,153.35,153.3,6.5231]
[1727743382494,22.4210643,153.37,153.28,16.309]
[1727743382694,6.5206,153.36,153.31,6.5226]
[1727743383713,28.9412643,153.37,153.32,6.5222]
[1727743385309,22.4210643,153.37,153.32,6.5222]
[1727743385523,0.8211643,153.37,153.33,6.5217]
[1727743386413,0.8211643,153.37,153.3,18.40473512]
[1727743386719,0.8211643,153.37,153.34,16.3026]
[1727743387904,0.8211643,153.37,153.35,6.5209]
[1727743390915,0.8211643,153.37,153.34,16.3026]
[1727743391698,0.8211643,153.37,153.34,22.8239]
[1727743396720,0.8211643,153.37,153.34,16.3026]
[1727743397130,0.8211643,153.37,153.36,6.5206]
[1727743403009,0.8211643,153.37,153.34,16.3026]
[1727743403225,0.8211643,153.37,153.36,6.5206]
[1727743403427,0.8211643,153.37,153.35,6.5209]
[1727743404937,0.8211643,153.37,153.36,6.5206]
[1727743415359,0.8211643,153.37,153.36,18.30298646]
[1727743415523,0.8211643,153.37,153.36,48.14437046]
[1727743416063,0.8211643,153.37,153.36,12.5851]
[1727743416235,0.8211643,153.37,153.36,6.5206]
[1727743421145,0.8211643,153.37,153.36,18.30298646]
[1727743421535,0.8211643,153.37,153.36,58.72447046]
[1727743421735,0.8211643,153.37,153.36,64.67752722]
[1727743422248,0.8211643,153.37,153.36,64.68066389]
[1727743425263,0.8211643,153.37,153.36,72.61232736]
[1727743425855,0.8211643,153.37,153.36,76.33782233]
[1727743426156,0.8211643,153.37,153.36,68.40615886]
[1727743427940,6.2775648,153.5,153.36,68.54195886]
[1727743427941,0.2566648,153.5,153.36,68.54195886]
[1727743428141,0.2566648,153.5,153.48,6.5151]
[1727743428358,0.2566648,153.5,153.49,6.515]
[1727743437553,0.2566648,153.5,153.46,16.2901]
[1727743439164,0.2566648,153.5,153.49,6.515]
[1727743441445,0.2566648,153.5,153.48,6.5154]
[1727743442261,0.2566648,153.5,153.46,16.2901]
[1727743442465,0.2566648,153.5,153.49,6.515]
[1727743450175,0.2566648,153.5,153.49,18.27172514]
[1727743450874,0.2566648,153.5,153.49,49.98027261]
[1727743452788,0.2566648,153.5,153.49,42.04860914]
[1727743453086,0.3609138,153.54,153.51,30.291084]
[1727743453276,0.3609138,153.54,153.51,42.04780914]
[1727743456184,0.3609138,153.54,153.51,6.5142]
[1727743456387,0.3609138,153.54,153.51,18.27092514]
[1727743457588,0.3609138,153.54,153.51,42.04780914]
[1727743461398,0.3609138,153.54,153.51,49.39912942]
[1727743462076,0.3609138,153.54,153.51,42.04780914]
[1727743462302,0.3609138,153.54,153.51,6.5142]
[1727743464206,0.3609138,153.54,153.5,16.2861]
[1727743465402,6.8740138,153.54,153.5,16.2861]
[1727743465795,6.5137,153.53,153.48,6.5154]
[1727743466107,0.3609138,153.54,153.5,6.5146]
[1727743467210,0.3609138,153.54,153.51,6.5142]
[1727743490328,0.3609138,153.54,153.51,10.22566367]
[1727743490538,0.3609138,153.54,153.51,6.5142]
[1727743490705,0.3609138,153.54,153.51,34.00254767]
[1727743491338,0.3609138,153.54,153.51,39.94201898]
[1727743492028,0.3609138,153.54,153.51,30.291084]
[1727743492234,0.3609138,153.54,153.51,39.94138622]
[1727743492608,0.3609138,153.54,153.51,34.00280707]
[1727743492833,0.3609138,153.54,153.51,39.94156399]
[1727743493207,0.3609138,153.54,153.51,34.00280707]
[1727743493406,0.3609138,153.54,153.51,39.94156399]
[1727743495419,0.3609138,153.54,153.51,30.291084]
[1727743495945,0.3609138,153.54,153.51,39.94626133]
[1727743498554,0.3609138,153.54,153.51,30.291084]
[1727743498725,0.3609138,153.54,153.51,39.94817854]
[1727743500954,0.3609138,153.54,153.51,30.291084]
[1727743501158,0.3609138,153.54,153.51,34.00406887]
[1727743501352,0.3609138,153.54,153.51,39.94484466]
[1727743503749,6.43e-05,153.52,153.51,39.94484466]
[1727743503951,22.4444,153.63,153.59,6.5107]
[1727743504152,22.4444,153.63,153.58,22.7881]
[1727743505165,22.4444,153.63,153.56,17.69443813]
[1727743505166,6.5099,153.61,153.57,3.70957848]
[1727743505381,6.5099,153.61,153.56,6.512]
[1727743506868,6.5095,153.62,153.57,6.5116]
[1727743508665,1.62759302,153.62,153.57,6.5116]
[1727743508869,6.51,153.61,153.56,6.512]
[1727743509872,1.62764729,153.6,153.53,5.94046999]
[1727743510063,22.5192,153.59,153.53,5.94046999]
[1727743510265,6.5129,153.54,153.51,5.94046999]
[1727743510571,6.5129,153.54,153.49,22.8025]
[1727743512081,8.14175138,153.53,153.49,16.2876]
[1727743512367,28.7027,153.53,153.49,16.2876]
[1727743513347,22.1893,153.53,153.49,22.8026]
[1727743514453,22.1893,153.53,153.5,6.5146]
[1727743514754,22.1893,153.53,153.49,22.8026]
[1727743515755,6.6661,153.53,153.49,22.8026]
[1727743515956,6.5129,153.55,153.5,6.5146]
[1727743516351,22.0367,153.57,153.49,16.2876]
[1727743518077,6.5126,153.55,153.5,6.5146]
[1727743519070,28.5487,153.57,153.52,6.5134]
[1727743519654,22.0367,153.57,153.54,6.5129]
[1727743519855,22.0367,153.57,153.53,16.2826]
[1727743520174,22.0367,153.57,153.53,22.7958]
[1727743521284,22.0367,153.57,153.54,6.5128]
[1727743521576,6.80592861,153.65,153.49,5.94477628]
[1727743521577,23.15653195,153.63,153.51,5.94477628]
[1727743521951,23.15653195,153.63,153.5,17.69843862]
[1727743522255,23.15653195,153.63,153.51,5.94477628]
[1727743522574,6.5111,153.59,153.54,6.5129]
[1727743523485,21.5288,153.63,153.52,22.7981]
[1727743523486,6.5117,153.57,153.52,22.7981]
[1727743523660,8.14016287,153.56,153.52,16.2844]
[1727743524275,6.5116,153.57,153.52,22.7981]
[1727743525374,1.6280819,153.56,153.52,22.7981]
[1727743526077,6.5116,153.57,153.52,22.7981]
[1727743527264,8.13979936,153.57,153.52,22.7981]
[1727743527457,1.62819936,153.57,153.49,5.94619097]
[1727743527653,22.5058,153.58,153.5,16.2858]
[1727743527854,8.13985941,153.57,153.52,6.5137]
[1727743528284,6.5117,153.57,153.52,6.5137]
[1727743528467,29.0171,153.58,153.53,6.5133]
[1727743528856,8.13975572,153.57,153.51,6.5138]
[1727743529183,8.13975572,153.57,153.5,16.2858]
[1727743529184,6.5125,153.55,153.5,22.8003]
[1727743529370,6.5117,153.57,153.52,6.5137]
[1727743529767,22.5058,153.58,153.54,6.5129]
[1727743531864,22.5058,153.58,153.52,16.2836]
[1727743532080,29.0171,153.58,153.53,6.5133]
[1727743532382,8.13970753,153.57,153.52,16.2836]
[1727743532595,6.5122,153.56,153.52,16.2836]
[1727743532907,1.62833196,153.55,153.51,5.94892476]
[1727743533067,8.14083196,153.55,153.51,5.94892476]
[1727743533268,8.14083196,153.55,153.5,6.5145]
[1727743533494,6.5125,153.55,153.5,6.5145]
[1727743534071,6.512,153.57,153.51,6.5142]
[1727743534474,29.017,153.58,153.51,16.2848]
[1727743534785,22.5058,153.58,153.55,6.5122]
[1727743535582,22.5058,153.58,153.54,16.2817]
[1727743535981,22.5137,153.62,153.54,16.2817]
[1727743536597,22.5137,153.62,153.56,6.512]
[1727743537267,1.6278548,153.61,153.56,6.512]
[1727743537596,22.5137,153.62,153.54,16.2817]
[1727743537775,6.5104,153.6,153.55,6.5124]
[1727743539774,8.13866314,153.59,153.54,22.7945]
[1727743539974,6.5108,153.59,153.54,22.7945]
[1727743540191,6.5108,153.59,153.54,16.2817]
[1727743540384,6.5108,153.59,153.55,6.5124]
[1727743540678,22.5137,153.62,153.54,16.2817]
[1727743540880,29.0232,153.62,153.57,6.5115]
[1727743541778,22.5137,153.62,153.58,6.5111]
[1727743542395,22.5137,153.62,153.56,16.2796]
[1727743542579,29.0233,153.62,153.57,6.5116]
[1727743543791,8.1376236,153.61,153.57,6.5116]
[1727743544103,8.1376236,153.61,153.56,16.2796]
[1727743544302,8.1376236,153.61,153.56,22.7916]
[1727743545793,6.51,153.61,153.56,22.7916]
[1727743545980,29.0232,153.62,153.57,6.5116]
[1727743547584,6.5103,153.61,153.56,22.7916]
[1727743551005,6.5108,153.59,153.56,16.2796]
[1727743551305,6.5108,153.59,153.54,6.5126]
[1727743552400,1.62766079,153.61,153.54,6.5126]
[1727743552699,6.5112,153.58,153.54,6.5126]
[1727743553490,6.5109,153.59,153.54,6.5126]
[1727743554291,6.5103,153.61,153.55,6.5121]
[1727743554489,6.5105,153.6,153.55,6.5121]
[1727743554980,22.5137,153.62,153.53,11.75366234]
[1727743555184,22.5137,153.62,153.59,6.5107]
[1727743555382,22.5137,153.62,153.58,6.5111]
[1727743557085,24.14111081,153.62,153.55,12.45900534]
[1727743557414,1.62770048,153.61,153.55,12.45900534]
[1727743557707,6.5109,153.59,153.54,22.7949]
[1727743558913,1.62785758,153.58,153.54,22.7949]
[1727743559093,8.13915758,153.58,153.54,16.282]
[1727743559610,6.5113,153.58,153.54,22.7949]
[1727743560312,6.5107,153.6,153.54,22.7949]
[1727743560515,6.5109,153.59,153.54,22.7949]
[1727743560804,1.62787872,153.58,153.54,16.282]
[1727743560991,6.5113,153.58,153.54,16.282]
[1727743561190,6.5108,153.59,153.54,22.7947]
[1727743562618,6.5108,153.59,153.54,16.282]
[1727743562789,6.5104,153.6,153.55,6.5124]
[1727743562989,8.13875867,153.59,153.54,16.282]
[1727743563185,22.5137,153.62,153.55,6.5125]
[1727743563186,6.5104,153.6,153.55,6.5125]
[1727743563401,29.0236,153.62,153.56,6.5119]
[1727743563608,29.0236,153.62,153.57,6.5116]
[1727743564696,29.0236,153.62,153.58,6.5112]
[1727743564905,22.5137,153.62,153.58,6.5112]
[1727743565206,6.5092,153.63,153.59,6.5107]
[1727743567791,21.3942,153.66,153.56,11.75366234]
[1727743567993,21.3942,153.66,153.62,6.5095]
[1727743568206,1.7711683,153.67,153.63,6.5088]
[1727743568417,9.90551294,153.67,153.62,22.7825]
[1727743568716,8.2785683,153.67,153.62,22.7825]
[1727743569014,6.5087,153.64,153.59,22.7876]
[1727743569395,8.13646215,153.63,153.59,16.2769]
[1727743569712,6.5095,153.62,153.57,6.5116]
[1727743569933,16.95838805,153.64,153.56,16.2801]
[1727743570111,15.3308,153.64,153.56,16.2801]
[1727743570296,1.62758074,153.63,153.56,16.2801]
[1727743570498,1.62758074,153.63,153.56,22.7918]
[1727743570499,6.51,153.61,153.56,22.7918]
[1727743571924,6.51,153.61,153.57,6.5116]
[1727743573927,6.5096,153.62,153.57,6.5116]
[1727743578223,6.5092,153.63,153.58,6.5112]
[1727743579629,6.5092,153.63,153.59,6.5107]
[1727743581932,6.5092,153.63,153.57,9.28724918]
[1727743581933,6.5092,153.63,153.58,6.5111]
[1727743582926,6.5092,153.63,153.58,15.79834918]
[1727743583117,6.5092,153.63,153.59,6.5108]
[1727743583316,21.8395,153.64,153.59,6.5108]
[1727743583516,6.5092,153.63,153.59,6.5108]
[1727743584512,15.3308,153.64,153.58,9.28713068]
[1727743584513,8.13701245,153.62,153.58,9.28713068]
[1727743584712,6.5101,153.61,153.56,22.7918]
[1727743584924,6.5101,153.61,153.56,32.08066574]
[1727743586033,6.5094,153.63,153.58,6.511]
[1727743586225,6.5094,153.63,153.56,25.56896574]
[1727743586226,6.5099,153.61,153.56,32.08096574]
[1727743587516,6.5099,153.61,153.56,22.7921]
[1727743587716,6.5099,153.61,153.56,32.08497568]
[1727743587924,6.5111,153.59,153.56,18.58555726]
[1727743588124,6.5104,153.6,153.56,27.87823565]
[1727743588627,6.5104,153.6,153.56,18.58555726]
[1727743589017,8.1385439,153.59,153.56,18.58555726]
[1727743589228,6.5112,153.58,153.56,18.58555726]
[1727743589416,8.13917849,153.58,153.56,18.58555726]
[1727743589820,6.5116,153.57,153.56,18.58555726]
[1727743593223,6.5116,153.57,153.52,6.5136]
[1727743594917,6.5113,153.58,153.52,16.2836]
[1727743595129,6.1229,153.59,153.54,6.5129]
[1727743595324,6.1229,153.59,153.52,16.2836]
[1727743595639,6.5112,153.58,153.53,6.5132]
[1727743596743,16.0127,153.62,153.52,28.03726234]
[1727743597031,16.0127,153.62,153.56,6.512]
[1727743597234,6.5103,153.61,153.56,6.512]
[1727743597539,6.5105,153.6,153.56,6.512]
[1727743597729,6.5105,153.6,153.54,16.2816]
[1727743598029,6.5105,153.6,153.55,6.5124]
[1727743598239,16.0127,153.62,153.54,16.2816]
[1727743598240,6.51,153.61,153.56,6.5119]
[1727743598621,22.5222,153.62,153.58,6.5112]
[1727743598828,16.2893,153.66,153.58,11.75366234]
[1727743599134,6.5086,153.65,153.6,6.5103]
[1727743599318,6.5088,153.64,153.59,6.5108]
[1727743601218,22.7975,153.66,153.58,28.03086234]
[1727743601622,16.2893,153.66,153.61,6.5099]
[1727743601928,6.5083,153.65,153.6,6.5103]
[1727743604543,16.2893,153.66,153.59,6.5107]
[1727743604544,1.62725811,153.64,153.59,6.5107]
[1727743604719,6.5091,153.63,153.59,6.5107]